Cogmind - Beta 16 @@@ ROGUE MODE // 2025.11.19 @ 22:47:42 // Winter2019/RPGLIKE Player: Jaegerpls Result: Destroyed by G-47 Trooper with Particle Gun Performance ------------- Evolutions (2) 1000 Regions Visited (5) 1000 Robots Destroyed (45) 225 Value Destroyed (1016) 1016 Prototype IDs (24) 480 Alien Tech Used (0) 0 Bonus (373) 373 TOTAL SCORE: 4094 Bonus ------- Follower Combat Kills 73 Aligned with FarCom 300 Cogmind --------- Core Integrity 0/750 Matter 300/300 Energy 299/300 System Corruption 0% Temperature Cool (54) Movement Rolling (105) Ox1 Location -8/Materials Parts ------- > --- POWER (2) -------- Nuclear Core Light Nuclear Core > --- PROPULSION (2) --- Armored Wheel Armored Wheel > --- UTILITY (6) ------ Experimental Sensor Array Improved Terrain Scanner Cloak of Protection Hacking Suite System Shield Tractor Beam > --- WEAPON (3) ------- Heavy Assault Cannon Improved Datajack > --- INVENTORY (2) ---- Improved Hover Unit Improved Hover Unit Peak State ------------ > --- POWER ------------ Nuclear Core Light Nuclear Core > --- PROPULSION ------- Makeshift Leg Makeshift Leg > --- UTILITY ---------- Experimental Sensor Array Improved Terrain Scanner Target Analyzer Cloak of Protection Hacking Suite Tractor Beam > --- WEAPON ----------- Heavy Assault Cannon Improved Datajack > --- INVENTORY -------- System Shield [Rating: 50] Favorites ----------- Power Nuclear Core Engine Ion Engine Power Core Nuclear Core Propulsion Makeshift Leg Treads Light Treads Leg Makeshift Leg Wheel Armored Wheel Hover Unit Hover Unit Flight Unit Flight Unit Utility Hacking Suite Device Improved Terrain Scanner Processor Target Analyzer Hackware Hacking Suite Weapon Light Cannon Energy Gun Heavy EM Pulse Gun Energy Cannon Beam Cannon Ballistic Gun Minigun Ballistic Cannon Light Cannon Special Melee Weapon Improved Datajack Build | -11 -10 -10 -10 -9 -8 ------- Run | Yrd Mat Min Exi Min Mat Slots Evolved 9 | 4 1 2 1 1 . Power 1 | . . . 1 . . Propulsion 1 | 1 . . . . . Utility 5 | 1 1 2 . 1 . Weapon 2 | 2 . . . . . Parts Attached 40 | 7 17 8 . 4 4 Power 5 | 1 2 1 . 1 . Engine 3 | 1 2 . . . . Core 2 | . . 1 . 1 . Reactor . | . . . . . . Propulsion 15 | 2 6 2 . 2 3 Treads 1 | . 1 . . . . Leg 3 | . . 2 . 1 . Wheel 6 | 2 2 . . 1 1 Hover 3 | . 1 . . . 2 Flight 2 | . 2 . . . . Utility 7 | 1 2 2 . 1 1 Device 4 | 1 1 1 . 1 . Storage . | . . . . . . Processor 1 | . . 1 . . . Hackware 2 | . 1 . . . 1 Protection . | . . . . . . Artifact . | . . . . . . Weapon 13 | 3 7 3 . . . Energy Gun 6 | 3 3 . . . . Energy Cannon 1 | . 1 . . . . Ballistic Gun 1 | . . 1 . . . Ballistic Cannon 4 | . 3 1 . . . Launcher . | . . . . . . Special Weapon . | . . . . . . Impact Weapon . | . . . . . . Slashing Weapon . | . . . . . . Piercing Weapon . | . . . . . . Special Melee Weapon 1 | . . 1 . . . Unidentified Prototypes 1 | . . 1 . . . Parts Lost . | . . . . . . Power . | . . . . . . Propulsion . | . . . . . . Utility . | . . . . . . Weapon . | . . . . . . Highest Loss Streak . | . . . . . . To Critical Strikes . | . . . . . . Average Backups 1 | . . 1 2 1 1 Power . | . . . . . . Propulsion . | . . . . . . Utility . | . . . 1 1 . Weapon . | . . 1 . . . Tool/Special . | . . . . . . Unused Backups . | . . . . . . Power . | . . . . . . Propulsion . | . . . . . . Utility . | . . . . . . Weapon . | . . . . . . Tool/Special . | . . . . . . Average Slot Usage (%) 87 | . 88 86 85 91 87 Engine 4 | . 11 3 . . . Core 6 | . . 6 8 15 15 Treads 4 | . 8 5 . . . Leg 6 | . . 8 16 14 . Wheel 1 | . 1 . . . 9 Device 22 | . 18 20 25 29 30 Processor 4 | . . 7 8 7 4 Hackware 9 | . 11 10 8 7 10 Energy Gun 5 | . 7 10 . . . Ballistic Cannon 12 | . 23 6 8 7 7 Special Melee Weapon 4 | . . 5 8 7 7 Peak Build Rating 50 | 9 15 39 40 50 46 Average Rating 27 | 5 11 26 39 48 44 On Entrance 24 | . 9 15 39 40 44 Avg Prop Armor Cover (%) 4 | . 4 . . . . Naked Turns . | . . . . . . Heaviest Build 36 | 10 16 24 23 36 36 Greatest Support 40 | 20 20 40 40 40 24 Greatest Overweight (x) 5 | . 5 1 . 2 5 Average Overweight (x) . | . . . . . 1 Largest Inventory Capacity 2 | 1 1 2 2 2 2 Average Capacity 1 | 1 1 1 2 2 2 Most Carried 2 | . 1 2 2 2 2 Average Carried 1 | . . 1 1 1 1 Final Capacity 2 | 1 1 2 2 2 2 Final Carried 2 | . 1 2 2 1 2 Class Distribution -------------------- 32% | Skirmisher 26% | Scavenger-Assassin 16% | Mutant 10% | Scavenger-Skirmisher 8% | Hacker-Assassin 3% | Gunner Dominant Class ---------------- Skirmisher | -10/Materials Mutant | -10/Mines Scavenger-Assassin | -10/Exiles Scavenger-Assassin | -9/Mines Hacker-Assassin | -8/Materials Resources | -11 -10 -10 -10 -9 -8 ----------- Run | Yrd Mat Min Exi Min Mat Matter Collected 1530 | 270 478 157 . 407 218 Remotely 986 | . 204 157 . 407 218 Salvage Created 747 | 92 338 7 . 173 137 Parts 69 | 4 27 7 . 20 11 Haulers Intercepted 2 | . 2 . . . . Recyclers Shooed . | . . . . . . Parts Field Recycled . | . . . . . . Retrieved Matter . | . . . . . . Parts Self-Destructed . | . . . . . . Prevented . | . . . . . . Parts Restored . | . . . . . . Kills | -11 -10 -10 -10 -9 -8 ------- Run | Yrd Mat Min Exi Min Mat Combat Hostiles Destroyed 33 | . 9 4 . 15 5 Guns 7 | . 6 1 . . . Cannons 26 | . 3 3 . 15 5 Classes Destroyed 9 | 2 5 . . 2 . Tunneler 3 | 2 1 . . . . Hauler 2 | . 2 . . . . Recycler 2 | 1 . . . . 1 Operator 1 | . 1 . . . . Watcher 4 | . 3 . . . 1 Swarmer 25 | . 6 3 . 12 4 Grunt 6 | . 3 1 . 1 1 Duelist 1 | . . . . 1 . Demolisher 1 | . . . . 1 . Best Kill Streak 5 | 2 3 2 . 5 4 Combat Bots Only 5 | . 3 2 . 5 4 Max Kills in Single Turn 2 | 1 2 1 . 1 1 Gunslinging 1 | . 1 . . . . Exploded . | . . . . . . Melee . | . . . . . . Uniques/NPCs Destroyed . | . . . . . . Combat | -11 -10 -10 -10 -9 -8 -------- Run | Yrd Mat Min Exi Min Mat Hostile Shots Fired 148 | . 29 14 . 67 38 Missed 40 | . 6 1 . 18 15 Hits 108 | . 23 13 . 49 23 Projectile 108 | . 23 13 . 49 23 AOE 5 | . . . . 5 . Critical Strikes 2 | . . . . 1 1 Damage Taken 1310 | . 286 141 . 631 252 Core 1036 | . 225 113 . 501 197 Absorbed by Shields . | . . . . . . Redirected to Core 882 | . 195 89 . 420 178 Core Remaining (%) 53 | 100 . . . 6 . Volleys Fired 167 | 8 80 19 . 39 21 Largest 3 | 3 3 3 . 1 1 Hottest 135 | 130 130 135 . 50 50 Shots Fired 264 | 24 151 29 . 39 21 Gun 91 | 24 52 15 . . . Cannon 173 | . 99 14 . 39 21 Launcher . | . . . . . . Special . | . . . . . . Kinetic 141 | . 67 14 . 39 21 Thermal 108 | 24 84 . . . . Explosive . | . . . . . . Electromagnetic 15 | . . 15 . . . Robot Hit Streak 6 | 3 6 4 . 5 4 Robot Miss Streak 9 | 3 9 3 . 3 3 Penetration Max . | . . . . . . Secondary Targets 3 | . 2 1 . . . Max Gunslinging Chain 1 | . 1 1 . . . Shots Hit Robots 99 | 12 44 9 . 21 13 Core Hits 41 | 4 18 3 . 11 5 Critical Kills . | . . . . . . Critical Parts Destroyed . | . . . . . . Critical Strikes 8 | . 3 . . 3 2 Burn 2 | . 2 . . . . Blast 6 | . 1 . . 3 2 Melee Attacks 2 | . . 2 . . . Impact . | . . . . . . Slashing . | . . . . . . Piercing . | . . . . . . Sneak Attacks 1 | . . 1 . . . Combat Hostiles . | . . . . . . Follow-up Attacks . | . . . . . . Damage Inflicted 2933 | 134 597 307 . 1185 710 Guns 521 | 134 355 32 . . . Cannons 2412 | . 242 275 . 1185 710 Explosions . | . . . . . . Melee . | . . . . . . Ramming . | . . . . . . Kinetic 2394 | . 224 275 . 1185 710 Thermal 507 | 134 373 . . . . Explosive . | . . . . . . Electromagnetic 32 | . . 32 . . . Impact . | . . . . . . Slashing . | . . . . . . Piercing . | . . . . . . Highest Corruption . | . . . . . . Average Corruption . | . . . . . . Corruption Purged . | . . . . . . Corruption Blocked . | . . . . . . Overload Shots . | . . . . . . Overflow Damage 361 | . 15 62 . 168 116 Projectiles 361 | . 15 62 . 168 116 Explosions . | . . . . . . Melee . | . . . . . . Knockbacks 16 | . 5 1 . 5 5 Impact . | . . . . . . Kinetic 16 | . 5 1 . 5 5 Secondary . | . . . . . . Self-Inflicted Damage 56 | . 56 . . . . Shots 1 | . 1 . . . . Rammed . | . . . . . . Targets Rammed . | . . . . . . Kicked . | . . . . . . Crushed . | . . . . . . Highest Temperature 137 | 69 137 78 . 8 27 Average Temperature 28 | 30 62 30 . 4 7 Received Heat Transfer 162 | . 57 6 . 9 90 Siege Activations . | . . . . . . Martial Activations . | . . . . . . Shielding Activations . | . . . . . . Robots Disrupted . | . . . . . . Combat Hostiles . | . . . . . . Robots Corrupted . | . . . . . . Combat Hostiles . | . . . . . . Parts Fried . | . . . . . . Impact Corruptions . | . . . . . . Robots Melted 1 | . 1 . . . . Combat Hostiles . | . . . . . . Parts Melted 3 | 2 . . . 1 . Heat Transferred 1380 | 336 1044 . . . . Parts Sabotaged . | . . . . . . Parts Stolen . | . . . . . . Parts Stripped . | . . . . . . Power Chain Reactions . | . . . . . . Alert | -11 -10 -10 -10 -9 -8 ------- Run | Yrd Mat Min Exi Min Mat Maximum Alert Level . | . . . . . . Low Security (%) 100 | 100 100 100 . 100 100 Level 1 . | . . . . . . Level 2 . | . . . . . . Level 3 . | . . . . . . Level 4 . | . . . . . . Level 5 . | . . . . . . High Security . | . . . . . . Max Security . | . . . . . . Peak Influence 173 | 5 137 140 . 173 105 Initial 33 | . 3 . . . 33 Average 46 | 1 57 36 . 66 9 Influence Increases 1742 | 15 673 370 23 485 176 Destroy 0b10 Robot/C 760 | . 180 140 20 320 100 Destroy 0b10 Robot/NC 60 | 15 35 . . . 10 Destroy Leader 142 | . 50 30 . 50 12 Allied During Kill 64 | . . 41 3 20 . Successful Hack 34 | . 27 4 . . 3 Disable Machine 465 | . 300 90 . 45 30 Destroy Structure 127 | . 66 20 . 35 6 Lose Combat Pursuer 90 | . 15 45 . 15 15 Influence Decreases 1637 | 10 678 263 130 397 159 Entered New Map 164 | . 2 . 107 . 55 Time Decay 1290 | 10 534 263 23 356 104 Lost Ally 41 | . . . . 41 . Purge Threat 142 | . 142 . . . . Squads Dispatched 2 | . 1 1 . . . Investigation 1 | . . 1 . . . Extermination . | . . . . . . Reinforcement 1 | . 1 . . . . Assault . | . . . . . . Garrison . | . . . . . . Intercept . | . . . . . . Searches Triggered . | . . . . . . Construction Impeded . | . . . . . . Haulers Reinforced . | . . . . . . Active Scanning Responses . | . . . . . . Cargo Convoy Interrupts . | . . . . . . Stealth | -11 -10 -10 -10 -9 -8 --------- Run | Yrd Mat Min Exi Min Mat Distress Signals 2 | . 1 . . . 1 Communications Jammed . | . . . . . . Distress Signals . | . . . . . . Times Spotted 56 | . 15 8 1 19 13 Peak Tracking Total 9 | . 3 3 1 8 9 Tactical Retreats 5 | . 1 2 . 1 1 Traps | -11 -10 -10 -10 -9 -8 ------- Run | Yrd Mat Min Exi Min Mat Traps Triggered 2 | . 2 . . . . Indirectly . | . . . . . . Trap Hack Attempts . | . . . . . . Triggered . | . . . . . . Disarmed . | . . . . . . Reprogrammed . | . . . . . . Reused . | . . . . . . Traps Extracted . | . . . . . . Installed . | . . . . . . Triggered . | . . . . . . Machines | -11 -10 -10 -10 -9 -8 ---------- Run | Yrd Mat Min Exi Min Mat Machines Disabled 31 | . 20 6 . 3 2 Max in Single Turn 2 | . 2 1 . 1 1 Machines Repaired . | . . . . . . Machines Dismantled . | . . . . . . Machines Sabotaged . | . . . . . . Overloaded Fab Kills . | . . . . . . Hacking | -11 -10 -10 -10 -9 -8 --------- Run | Yrd Mat Min Exi Min Mat Machines Accessed 13 | . 8 3 1 . 1 Terminals 8 | . 6 1 . . 1 Fabricators . | . . . . . . Repair Stations . | . . . . . . Recycling Units 2 | . 2 . . . . Scanalyzers . | . . . . . . Garrison Access . | . . . . . . Total Hacks 34 | . 24 5 1 . 4 Successful 22 | . 14 4 1 . 3 Failed 12 | . 10 1 . . 1 Catastrophic 2 | . 2 . . . . Database Lockouts . | . . . . . . Manual 30 | . 22 3 1 . 4 Terminals 27 | . 20 3 . . 4 Fabricators . | . . . . . . Repair Stations . | . . . . . . Recycling Units 4 | . 4 . . . . Scanalyzers . | . . . . . . Garrison Access . | . . . . . . Terminal Hacks 8 | . 3 3 1 . 1 Robot Analysis 1 | . . 1 . . . Open Door 2 | . . 2 . . . Alert Level 1 | . . . . . 1 Unreport Threat 3 | . 3 . . . . Proto ID Catalog 1 | . . . 1 . . Fabricator Hacks . | . . . . . . Repair Station Hacks . | . . . . . . Recycling Unit Hacks 2 | . 2 . . . . Report Inventory 2 | . 2 . . . . Scanalyzer . | . . . . . . Garrison Access Hacks . | . . . . . . Unauthorized Hacks 12 | . 9 1 . . 2 Terminals 10 | . 7 1 . . 2 Botnet 4 | . 2 1 . . 1 Skim 6 | . 5 . . . 1 Fabricators . | . . . . . . Repair Stations . | . . . . . . Recycling Units 2 | . 2 . . . . Reject 2 | . 2 . . . . Scanalyzers . | . . . . . . Garrison Access . | . . . . . . Data Cores Recovered 1 | . 1 . . . . Used 1 | . 1 . . . . Hacking Detections 10 | . 8 1 . . 1 Full Trace Events . | . . . . . . Feedback Events . | . . . . . . Feedback Blocked . | . . . . . . Robot Schematics Acquired . | . . . . . . Robots Built . | . . . . . . Authchips . | . . . . . . Time . | . . . . . . Total Robot Build Rating . | . . . . . . Part Schematics Acquired . | . . . . . . Parts Built . | . . . . . . Authchips . | . . . . . . Time . | . . . . . . Total Part Build Rating . | . . . . . . Part Studies Acquired . | . . . . . . Parts Repaired . | . . . . . . Time . | . . . . . . Parts Recycled . | . . . . . . Recycled Matter . | . . . . . . Retrieved Matter . | . . . . . . Retrieved Components . | . . . . . . Parts Scanalyzed . | . . . . . . Part Schematics Acquired . | . . . . . . Parts Damaged . | . . . . . . Bothacking | -11 -10 -10 -10 -9 -8 ------------ Run | Yrd Mat Min Exi Min Mat Used RIF Installer . | . . . . . . Robots Hacked 1 | . . 1 . . . Non-combat 1 | . . 1 . . . Combat . | . . . . . . Robot Hacks Applied 1 | . . 1 . . . no_distress 1 | . . 1 . . . Relay Couplers Released . | . . . . . . Fabnet Peak Effective % . | . . . . . . Robots Rewired . | . . . . . . Allies Hacked . | . . . . . . Hacks Repelled . | . . . . . . Allies | -11 -10 -10 -10 -9 -8 -------- Run | Yrd Mat Min Exi Min Mat Total Allies 6 | . . 6 . . . Largest Group 6 | . . 6 4 3 . Highest-Rated Group 125 | . . 125 71 40 . Highest-Rated Ally 31 | . . 31 31 16 . Total Orders . | . . . . . . Ally Attacks 62 | . . 17 6 39 . Total Damage 457 | . . 108 56 293 . Kills 5 | . . 3 1 1 . Allies Corrupted . | . . . . . . Allies Melted . | . . . . . . Intel | -11 -10 -10 -10 -9 -8 ------- Run | Yrd Mat Min Exi Min Mat Active Infowar (turns) 5254 | 6 1779 1689 535 804 441 Sensors 2462 | . . 682 535 804 441 Terrain 4684 | 6 1779 1119 535 804 441 Cloaking 1095 | . . . . 654 441 Robot Analysis Total 1 | . . 1 . . . Derelict Logs Recovered 3 | . . 1 . 2 . Drone Launches . | . . . . . . Drone Recoveries . | . . . . . . Exploration | -11 -10 -10 -10 -9 -8 ------------- Run | Yrd Mat Min Exi Min Mat Turns Passed 5327 | 79 1779 1689 535 804 441 Spaces Moved 2715 | 54 975 802 359 424 101 Core 3 | 2 1 . . . . Treads 1127 | . 733 394 . . . Legs 1163 | . . 408 359 396 . Wheels 288 | 52 123 . . 28 85 Hover 128 | . 112 . . . 16 Flight 6 | . 6 . . . . Fastest Speed 50 | 50 80 140 140 120 105 Average Speed 147 | 78 145 163 140 138 131 Slowest Speed 360 | 80 300 240 140 140 360 Overloaded Moves . | . . . . . . Propulsion Burnouts . | . . . . . . Robots Hopped . | . . . . . . Potential Cave-ins . | . . . . . . Cave-ins Triggered . | . . . . . . Exploration Rate (%) 57 | 3 95 94 64 82 7 Regions Visited 5 Branch Regions 3 Pre-discovered Areas 2 | . 2 . . . . Known Exits Taken . | . . . . . . Unknown Exits Taken 5 | 1 1 1 1 1 . Scrap Searched 2 | . . 1 . 1 . Spaces Dug . | . . . . . . Terrain Destroyed 160 | . 98 21 . 36 5 Melee . | . . . . . . Projectile 39 | . . 11 . 23 5 AOE 121 | . 98 10 . 13 . Terrain Rammed . | . . . . . . Walls Destroyed . | . . . . . . Machines Disabled . | . . . . . . Actions | -11 -10 -10 -10 -9 -8 --------- Run | Yrd Mat Min Exi Min Mat Total 3772 | 68 1203 1148 392 582 379 Wait 792 | . 107 296 32 109 248 Move 2710 | 53 974 801 358 423 101 Hop . | . . . . . . Pick Up 4 | . 1 1 1 1 . Fast Attach 39 | 7 17 9 . 2 4 Attach 3 | . 1 . . 1 1 Detach 9 | . 4 1 . 1 3 Swap 5 | . 3 1 . 1 . Drop 26 | . 13 8 1 3 1 Fire 167 | 8 80 19 . 39 21 Melee 2 | . . 2 . . . Ram . | . . . . . . Kick . | . . . . . . Crush . | . . . . . . Escape Stasis . | . . . . . . Rewire . | . . . . . . Trap . | . . . . . . Miscellaneous 15 | . 3 10 . 2 . Route ------- -11/Scrapyard -10/Materials (discovered 5 exits: [*Mat x3] / *Min / [*Sub]) -10/Mines (discovered 4 exits: [*Mat x2] / *Exi / [*Sub]) -10/Exiles -9/Mines (discovered 2 exits: *Mat x2) -8/Materials (discovered 1 exit: Fac) History --------- Turn | Location | Event 1 | -11/Scrapyard | Upgraded with Propulsion slot (x1) 1 | -11/Scrapyard | Upgraded with Utility slot (x1) 1 | -11/Scrapyard | Upgraded with Weapon slot (x2) 11 | -11/Scrapyard | Discovered new exit (range 16) 80 | -11/Scrapyard | Entered Materials 118 | -10/Materials | Discovered new exit (range 16) 404 | -10/Materials | Discovered new exit (range 5) 545 | -10/Materials | Discovered new exit (range 15) 730 | -10/Materials | Build established: Scavenger-Skirmisher 769 | -10/Materials | Reached level 2 774 | -10/Materials | Upgraded with Utility slot (x1) 807 | -10/Materials | Discovered new exit (range 12) 835 | -10/Materials | Discovered new exit (range 13) 1108 | -10/Materials | Build established: Skirmisher 1796 | -10/Materials | Learned location of Recycling (-7) 1828 | -10/Materials | Learned location of Storage (-7) 1859 | -10/Materials | Entered Mines 1861 | -10/Mines | Reached level 3 1931 | -10/Mines | Assisted by bots powering up and referring to "LRC-V3" 1977 | -10/Mines | Found a hidden stash of uninstalled traps 2017 | -10/Mines | Found DCF Scrap (9 items) 2188 | -10/Mines | Discovered new exit (range 14) 2205 | -10/Mines | Met a Derelict shopkeep closing up shop 2212 | -10/Mines | Discovered new exit (range 14) 2250 | -10/Mines | Upgraded with Utility slot (x1) 2307 | -10/Mines | Deemed a non-threat by the Exiles lab entrance 2353 | -10/Mines | Discovered new exit (range 6) 2368 | -10/Mines | Met a Derelict who couldn't figure out how to use a Trap Extractor 2412 | -10/Mines | Received a Mining Laser from a helpful Derelict 2747 | -10/Mines | Build established: Mutant 2863 | -10/Mines | Found a damaged Exp. Sensor Array with a note attached 2866 | -10/Mines | Found Prototype Device 2866 | -10/Mines | Identified Exp. Sensor Array 2934 | -10/Mines | Discovered new exit (range 5) 3032 | -10/Mines | Learned Materials stockpile data 3350 | -10/Mines | Reached level 4 3358 | -10/Mines | Upgraded with Utility slot (x1) 3548 | -10/Mines | Entered Exiles 3548 | -10/Exiles | Accompanied by 4 allies 3578 | -10/Exiles | Led the pair of lost Derelicts to a safe place 3592 | -10/Exiles | Met 8R-AWN 3616 | -10/Exiles | Met EX-HEX 3666 | -10/Exiles | Met EX-BIN 3686 | -10/Exiles | Aligned with FarCom system 3687 | -10/Exiles | Given EX-Vault access code 3726 | -10/Exiles | Build established: Scavenger-Assassin 3743 | -10/Exiles | Opened EX-Vault 3751 | -10/Exiles | Upgraded with Power slot (x1) 3752 | -10/Exiles | Found Cloak of Protection 3781 | -10/Exiles | Warned to stay clear of 0b10 Research branches 3802 | -10/Exiles | Exiles lab attacked by MAIN.C 3915 | -10/Exiles | Discovered new exit (range 14) 4083 | -10/Exiles | Left Exiles lab with Cloak of Protection 4083 | -10/Exiles | Entered Mines 4083 | -9/Mines | Accompanied by 3 allies 4180 | -9/Mines | Learned Materials emergency access door positions 4231 | -9/Mines | Reached level 5 4233 | -9/Mines | Upgraded with Utility slot (x1) 4417 | -9/Mines | Assembled infested the area 4417 | -9/Mines | Learned location of 1 exit from Materials 4422 | -9/Mines | Assisted by a Guerilla fighting off Assembled 4590 | -9/Mines | Core integrity fell below 50% 4666 | -9/Mines | Discovered new exit (range 16) 4858 | -9/Mines | Discovered new exit (range 7) 4863 | -9/Mines | Core integrity fell below 20% 4866 | -9/Mines | Reached level 6 4887 | -9/Mines | Entered Materials 4888 | -8/Materials | Identified exit to Factory 4888 | -8/Materials | Core integrity fell below 50% 4888 | -8/Materials | Core integrity fell below 20% 4889 | -8/Materials | Reached level 7 5198 | -8/Materials | Build established: Hacker-Assassin 5328 | -8/Materials | Destroyed by G-47 Trooper with Particle Gun Last Messages --------------- 05314_ K-01 Serf collects debris. 05316_ Acquired 8 matter. 05317_ U-05 Engineer builds a Wall. 05318_ Acquired 8 matter. 05318_ K-01 Serf collects debris. 05320_ Destroyed Flight Unit. 05320_ S-10 Pest knocked back. 05321_ Acquired 6 matter. 05321_ Acquired 2 matter. 05321_ U-05 Engineer builds a Door. 05321_ K-01 Serf collects debris. 05322_ G-50 Soldier Lgt. Angular Momentum Engine blasted off. 05322_ G-50 Soldier knocked back. 05323_ Acquired 8 matter. 05325_ K-01 Serf collects debris. 05325_ G-47 Trooper knocked back. 05326_ Acquired 8 matter. 05327_ K-01 Serf collects debris. 05327_ S-10 Pest destroyed. 05328_ Acquired 8 matter. Map ----- +----------------------------------------------------+ | ?????????????????????????#? ?"?"? # ??"??????????? | | ????????????????????? ? ? ??""? ????? ?????????? | | ??????????????????##?#?# ? ????? ??#?#??????????? | | ???????+?????????=? ?? ? ????"""? ?#?????#???????? | | ??????????????????? ??+?# "?"????###???????????? | | ???????????????#? ?# #??? ? ?#?#????????????? | | ?????????????? ?#?# #### ###???#?#######??##?????? | | ???????????##??#########?####?##?#?###?#??#??????? | | ??????????? ######## ####?#############??????? | | ???????# """ ######## ############? ??? ??????? | | ????#?## """"" ######## #########?## ??"??? ????? | | ?#??#### """"" ########+##########?# ??"? ??????? | | #??##### """"" ###### ######?"""????????? | | ???##### """ ###### #?#?##?? ? ????? | | ?#?##### ###### #####? ? ???????? | | #?###### ###### """ """ #####?#?####?#????? | | ??###### ###### """ """ #######?###?#?????? | | ?##################### """ """ ########?????#????? | | ?##################### #######?#??#??????? | | ###################### ########??#???????? | | ?#########################+###############???????? | | ?####### # %g% ????????? | | ######## # % =%*gk ????????? | | ######## % # %[k%g* ????????? | | ######## + ####% %########### ???????? | | ######## "" " # ####@% # ## ???????? | | ######## """ """ # #### # #? ????????? | | ######## """ """ # #### # """ #?? ????????? | | ?####### # #### #""""" ?# ?????????? | | ################## #### #""""" ??##? ????????? | | ################## #### #""""" ## ????????? | | ################## #### # """ ?? ?????????? | | ################## #### # ?##??????????? | | ################## #### # ##??????????? | | ################## #### %###+#####?????????=??? | | ################# ### g ? ???????????? | | ########## ### w ???g?????????? | | ########## T ### ?????????????? | | ########## ### r###??????????????????? | | ################# ### # ? ????????????????? | | ?######################## # ""????????????????? | | ######################### # ?"????????????????? | | ######################### # ?"?????????????????? | | ## ################# # ??????????????????? | | #? ########### #### #????????????????????? | | # "########### ####? ##????????????????????? | | ? T########?## ##### #? ??????????????????? | | #?] "########### ##### ??????????????????????? | | # ? ####?###### #####?#?????????????????????? | | ? ?? ? ########### ####????????????????????????? | +----------------------------------------------------+ Best States ------------- Heat Dissipation 37 Energy Generation 23 Energy Capacity 300 Matter Stores 300 Matter Capacity 300 Sight Range 16 Robot Scan Range 22 Terrain Scan Range 16 Terrain Scan Density 310 Cloak Strength 5 Evasion (%) 55 Target Analysis 5 Recoil Reduction 1 Offensive Hacking 15 Defensive Hacking 20 Item Schematics ----------------- None Robot Schematics ------------------ None Fabricated ------------ Nothing Repaired ---------- Nothing Studied --------- None Alien Tech Used ----------------- None Achievements -------------- None Challenges ------------ None RPGLIKE | -11 -10 -10 -10 -9 -8 --------- Run | Yrd Mat Min Exi Min Mat Levels Raised 6 | . 1 2 . 2 1 XP Earned 12874 | 3000 2735 1889 472 2578 2200 XP Spent 11495 | 2990 800 3000 500 3200 1005 Upgrades 26 | 11 1 3 1 4 6 Power Slot 1 | . . . 1 . . Propulsion Slot 1 | 1 . . . . . Utility Slot 5 | 1 1 2 . 1 . Weapon Slot 2 | 2 . . . . . Core Integrity 3 | . . . . . 3 Heat Dissipation 2 | 2 . . . . . Inventory Capacity 2 | 1 . 1 . . . Sensor Range 1 | 1 . . . . . Terrain Scan Density 3 | 3 . . . . . Ranged Accuracy 3 | . . . . 3 . Hack Attack % 1 | . . . . . 1 Hack Defense % 2 | . . . . . 2 Protomatter Created 127 | . 63 50 . 9 5 Integrity Restored 276 | . 63 177 . 36 . Core 276 | . 63 177 . 36 . Protomatter Decayed 157 | . . 9 90 58 . Game ------ Seed SiegeCoolantActivator Manual? 0 Play Time 00:51:26 Cumulative 106.1 hours Start 2025.11.19 @ 21:01:38 End 2025.11.19 @ 22:47:42 Sessions 1 Manual Loads 0 Difficulty Rogue Special Mode Winter2019/RPGLIKE Game No. 87 Rogue 87 Adventurer 0 Explorer 0 Win Type - Total 0 Types 0/0/0/0/0/0/0/0/0/0 Lore% 62 Gallery% 41 Achievement% 40 Wizard Run 0 Options --------- Layout 0 ASCII 0 Keyboard 0 Movement Mouse Keybinds 0 Fullscreen 2 Font 24/Smallcaps Map View 76x50 Zoom Use 0% Tactical HUD 1 Map Filters NONE Filters NONE Steam 1 RUN: 0c3420a1-6503-4f8a-8190-9de55f57485c